Cogmind - Beta 16 @@@ ROGUE MODE // 2025.10.24 @ 19:31:37 Player: Moodge Result: Destroyed by G-47 Trooper with Particle Gun Performance ------------- Evolutions (0) 0 Regions Visited (1) 200 Robots Destroyed (18) 90 Value Destroyed (525) 525 Prototype IDs (0) 0 Alien Tech Used (0) 0 Bonus (0) 0 TOTAL SCORE: 815 Bonus ------- None Cogmind --------- Core Integrity 0/250 Matter 281/300 Energy 248/250 System Corruption 0% Temperature Cool (10) Movement Treading (800) Ox8 Location -10/Materials Parts ------- > --- POWER (1) -------- Ion Engine > --- PROPULSION (2) --- Light Treads > --- UTILITY (2) ------ Huge Storage Unit Huge Storage Unit > --- WEAPON (2) ------- Light Assault Rifle Autogun > --- INVENTORY (25) --- Light Ion Engine Aluminum Leg Visual Processing Unit Sensor Array Signal Interpreter Medium Laser Beam Rifle Light Assault Rifle Grenade Launcher Peak State ------------ > --- POWER ------------ Light Ion Engine > --- PROPULSION ------- Light Treads Light Treads > --- UTILITY ---------- Huge Storage Unit Huge Storage Unit > --- WEAPON ----------- EM Shotgun > --- INVENTORY -------- Ion Engine Light Ion Engine Compact Wheel Huge Storage Unit Huge Storage Unit Huge Storage Unit Huge Storage Unit Huge Storage Unit Visual Processing Unit Sensor Array Signal Interpreter EM Shotgun Medium Laser Beam Rifle Beam Rifle Beam Rifle Beam Rifle Light Assault Rifle Light Assault Rifle Autogun Autogun Autogun Autogun Grenade Launcher [Rating: 10] Favorites ----------- Power Light Ion Engine Engine Light Ion Engine Propulsion Light Treads Treads Light Treads Leg Aluminum Leg Wheel Compact Wheel Utility Huge Storage Unit Storage Huge Storage Unit Weapon EM Pulse Gun Energy Gun EM Pulse Gun Ballistic Gun Light Assault Rifle Build | -11 -10 ------- Run | Yrd Mat Slots Evolved . | . . Power . | . . Propulsion . | . . Utility . | . . Weapon . | . . Parts Attached 18 | 4 14 Power 3 | 1 2 Engine 3 | 1 2 Core . | . . Reactor . | . . Propulsion 6 | 2 4 Treads 3 | 1 2 Leg 2 | . 2 Wheel 1 | 1 . Hover . | . . Flight . | . . Utility 3 | 1 2 Device . | . . Storage 3 | 1 2 Processor . | . . Hackware . | . . Protection . | . . Artifact . | . . Weapon 6 | . 6 Energy Gun 3 | . 3 Energy Cannon . | . . Ballistic Gun 3 | . 3 Ballistic Cannon . | . . Launcher . | . . Special Weapon . | . . Impact Weapon . | . . Slashing Weapon . | . . Piercing Weapon . | . . Special Melee Weapon . | . . Unidentified Prototypes . | . . Parts Lost 6 | . 6 Power 2 | . 2 Propulsion 1 | . 1 Utility . | . . Weapon 3 | . 3 Highest Loss Streak 1 | . 1 To Critical Strikes . | . . Average Backups 16 | 5 16 Power 1 | . 1 Propulsion . | 3 . Utility 4 | . 4 Weapon 9 | 2 10 Tool/Special . | . . Unused Backups 22 | . 22 Power 1 | . 1 Propulsion 1 | . 1 Utility 8 | . 8 Weapon 12 | . 12 Tool/Special . | . . Average Slot Usage (%) 85 | . 85 Engine 13 | . 13 Treads 26 | . 26 Leg 1 | . 1 Storage 26 | . 26 Energy Gun 11 | . 11 Ballistic Gun 5 | . 5 Peak Build Rating 10 | 4 10 Average Rating 8 | 2 8 On Entrance 2 | . 4 Avg Prop Armor Cover (%) 23 | 23 . Naked Turns . | . . Heaviest Build 169 | 8 169 Greatest Support 40 | 20 40 Greatest Overweight (x) 8 | . 8 Average Overweight (x) 3 | . 3 Largest Inventory Capacity 25 | 8 25 Average Capacity 23 | 6 24 Most Carried 25 | 8 25 Average Carried 16 | 6 17 Final Capacity 25 | 8 25 Final Carried 9 | 8 9 Class Distribution -------------------- 100% | Mutant Dominant Class ---------------- Mutant | -10/Materials Resources | -11 -10 ----------- Run | Yrd Mat Matter Collected 478 | 201 277 Remotely . | . . Salvage Created 665 | . 665 Parts 37 | . 37 Haulers Intercepted . | . . Recyclers Shooed . | . . Parts Field Recycled . | . . Retrieved Matter . | . . Parts Self-Destructed . | . . Prevented . | . . Parts Restored . | . . Kills | -11 -10 ------- Run | Yrd Mat Combat Hostiles Destroyed 15 | . 15 Guns 15 | . 15 Classes Destroyed 4 | . 4 Builder 1 | . 1 Watcher 2 | . 2 Swarmer 2 | . 2 Grunt 13 | . 13 Best Kill Streak 2 | . 2 Combat Bots Only 2 | . 2 Max Kills in Single Turn 1 | . 1 Gunslinging . | . . Exploded . | . . Melee . | . . Uniques/NPCs Destroyed . | . . Combat | -11 -10 -------- Run | Yrd Mat Hostile Shots Fired 158 | . 158 Missed 46 | . 46 Hits 112 | . 112 Projectile 112 | . 112 Critical Strikes 1 | . 1 Damage Taken 1263 | . 1263 Core 264 | . 264 Absorbed by Shields . | . . Core Remaining (%) 100 | 100 . Volleys Fired 67 | . 67 Largest 1 | . 1 Hottest 45 | . 45 Shots Fired 67 | . 67 Gun 67 | . 67 Cannon . | . . Launcher . | . . Special . | . . Kinetic 34 | . 34 Thermal . | . . Explosive . | . . Electromagnetic 33 | . 33 Robot Hit Streak 11 | . 11 Robot Miss Streak 3 | . 3 Penetration Max . | . . Secondary Targets . | . . Shots Hit Robots 50 | . 50 Core Hits 30 | . 30 Critical Kills . | . . Critical Parts Destroyed . | . . Critical Strikes . | . . Melee Attacks . | . . Impact . | . . Slashing . | . . Piercing . | . . Sneak Attacks . | . . Combat Hostiles . | . . Follow-up Attacks . | . . Damage Inflicted 750 | . 750 Guns 748 | . 748 Cannons . | . . Explosions . | . . Melee . | . . Ramming 2 | . 2 Kinetic 363 | . 363 Thermal . | . . Explosive . | . . Electromagnetic 385 | . 385 Impact . | . . Slashing . | . . Piercing . | . . Highest Corruption . | . . Average Corruption . | . . Corruption Purged . | . . Corruption Blocked . | . . Overload Shots . | . . Overflow Damage . | . . Projectiles . | . . Explosions . | . . Melee . | . . Knockbacks . | . . Impact . | . . Kinetic . | . . Secondary . | . . Self-Inflicted Damage . | . . Shots . | . . Rammed 1 | . 1 Targets Rammed 1 | . 1 Kicked . | . . Crushed . | . . Highest Temperature 48 | . 48 Average Temperature 14 | . 14 Received Heat Transfer 636 | . 636 Siege Activations . | . . Martial Activations . | . . Shielding Activations . | . . Robots Disrupted . | . . Combat Hostiles . | . . Robots Corrupted . | . . Combat Hostiles . | . . Parts Fried 1 | . 1 Impact Corruptions . | . . Robots Melted . | . . Combat Hostiles . | . . Parts Melted . | . . Heat Transferred . | . . Parts Sabotaged . | . . Parts Stolen . | . . Parts Stripped . | . . Power Chain Reactions . | . . Alert | -11 -10 ------- Run | Yrd Mat Maximum Alert Level . | . . Low Security (%) 100 | 100 100 Level 1 . | . . Level 2 . | . . Level 3 . | . . Level 4 . | . . Level 5 . | . . High Security . | . . Max Security . | . . Peak Influence 154 | . 154 Initial . | . . Average 33 | . 34 Influence Increases 506 | . 506 Destroy 0b10 Robot/C 300 | . 300 Destroy 0b10 Robot/NC 15 | . 15 Destroy Leader 84 | . 84 Successful Hack 17 | . 17 Lose Combat Pursuer 90 | . 90 Influence Decreases 360 | . 360 Time Decay 310 | . 310 Lost Part 50 | . 50 Squads Dispatched 5 | . 5 Investigation 4 | . 4 Extermination . | . . Reinforcement 1 | . 1 Assault . | . . Garrison . | . . Intercept . | . . Searches Triggered . | . . Construction Impeded . | . . Haulers Reinforced . | . . Active Scanning Responses . | . . Cargo Convoy Interrupts . | . . Stealth | -11 -10 --------- Run | Yrd Mat Distress Signals 2 | . 2 Communications Jammed . | . . Distress Signals . | . . Times Spotted 28 | . 28 Peak Tracking Total 7 | . 7 Tactical Retreats 5 | . 5 Traps | -11 -10 ------- Run | Yrd Mat Traps Triggered . | . . Indirectly . | . . Trap Hack Attempts . | . . Triggered . | . . Disarmed . | . . Reprogrammed 6 | . 6 Reused . | . . Traps Extracted . | . . Installed . | . . Triggered . | . . Machines | -11 -10 ---------- Run | Yrd Mat Machines Disabled . | . . Max in Single Turn . | . . Machines Repaired . | . . Machines Dismantled . | . . Machines Sabotaged . | . . Overloaded Fab Kills . | . . Hacking | -11 -10 --------- Run | Yrd Mat Machines Accessed 4 | . 4 Terminals 3 | . 3 Fabricators . | . . Repair Stations . | . . Recycling Units 1 | . 1 Scanalyzers . | . . Garrison Access . | . . Total Hacks 18 | . 18 Successful 14 | . 14 Failed 4 | . 4 Catastrophic 1 | . 1 Database Lockouts . | . . Manual . | . . Terminals 15 | . 15 Fabricators . | . . Repair Stations . | . . Recycling Units 3 | . 3 Scanalyzers . | . . Garrison Access . | . . Terminal Hacks 11 | . 11 Record 3 | . 3 Robot Analysis 1 | . 1 Emergency Access Points 1 | . 1 Alert Level 2 | . 2 Reprogram Traps 1 | . 1 Dispatch Records 1 | . 1 Registered Components 1 | . 1 Zone Layout 1 | . 1 Fabricator Hacks . | . . Repair Station Hacks . | . . Recycling Unit Hacks 3 | . 3 Recycle Component 2 | . 2 Retrieve Components 1 | . 1 Scanalyzer . | . . Garrison Access Hacks . | . . Unauthorized Hacks . | . . Terminals . | . . Fabricators . | . . Repair Stations . | . . Recycling Units . | . . Scanalyzers . | . . Garrison Access . | . . Data Cores Recovered . | . . Used . | . . Hacking Detections 4 | . 4 Full Trace Events 4 | . 4 Feedback Events . | . . Feedback Blocked . | . . Robot Schematics Acquired . | . . Robots Built . | . . Authchips . | . . Time . | . . Total Robot Build Rating . | . . Part Schematics Acquired . | . . Parts Built . | . . Authchips . | . . Time . | . . Total Part Build Rating . | . . Part Studies Acquired . | . . Parts Repaired . | . . Time . | . . Parts Recycled 2 | . 2 Recycled Matter . | . . Retrieved Matter . | . . Retrieved Components 6 | . 6 Parts Scanalyzed . | . . Part Schematics Acquired . | . . Parts Damaged . | . . Bothacking | -11 -10 ------------ Run | Yrd Mat Used RIF Installer . | . . Robots Hacked . | . . Non-combat . | . . Combat . | . . Robot Hacks Applied . | . . Relay Couplers Released . | . . Fabnet Peak Effective % . | . . Robots Rewired . | . . Allies Hacked . | . . Hacks Repelled . | . . Allies | -11 -10 -------- Run | Yrd Mat Total Allies . | . . Largest Group . | . . Highest-Rated Group . | . . Highest-Rated Ally . | . . Total Orders . | . . Ally Attacks . | . . Total Damage . | . . Kills . | . . Allies Corrupted . | . . Allies Melted . | . . Intel | -11 -10 ------- Run | Yrd Mat Active Infowar (turns) . | . . Robot Analysis Total 1 | . 1 Derelict Logs Recovered . | . . Drone Launches . | . . Drone Recoveries . | . . Exploration | -11 -10 ------------- Run | Yrd Mat Turns Passed 1619 | 54 1565 Spaces Moved 332 | 41 291 Core 10 | 10 . Treads 257 | 1 256 Legs 35 | . 35 Wheels 30 | 30 . Hover . | . . Flight . | . . Fastest Speed 50 | 50 120 Average Speed 389 | 89 432 Slowest Speed 800 | 160 800 Overloaded Moves . | . . Propulsion Burnouts . | . . Robots Hopped . | . . Potential Cave-ins . | . . Cave-ins Triggered . | . . Exploration Rate (%) 24 | 2 47 Regions Visited 1 Branch Regions . Pre-discovered Areas . | . . Known Exits Taken . | . . Unknown Exits Taken 1 | 1 . Scrap Searched . | . . Spaces Dug . | . . Terrain Destroyed . | . . Melee . | . . Projectile . | . . AOE . | . . Terrain Rammed . | . . Walls Destroyed . | . . Machines Disabled . | . . Actions | -11 -10 --------- Run | Yrd Mat Total 607 | 56 551 Wait 127 | 4 123 Move 331 | 40 291 Hop . | . . Pick Up 40 | 8 32 Fast Attach 4 | 4 . Attach 11 | . 11 Detach 1 | . 1 Swap 4 | . 4 Drop 21 | . 21 Fire 67 | . 67 Melee . | . . Ram . | . . Kick . | . . Crush 1 | . 1 Escape Stasis . | . . Rewire . | . . Trap . | . . Miscellaneous . | . . Route ------- -11/Scrapyard -10/Materials (discovered 3 exits: [*Mat] / [*Min x2]) History --------- Turn | Location | Event 6 | -11/Scrapyard | Discovered new exit (range 14) 55 | -11/Scrapyard | Entered Materials 318 | -10/Materials | Build established: Mutant 775 | -10/Materials | Discovered new exit (range 12) 817 | -10/Materials | Discovered new exit (range 10) 916 | -10/Materials | Discovered new exit (range 16) 1333 | -10/Materials | Core integrity fell below 50% 1358 | -10/Materials | Core integrity fell below 20% 1620 | -10/Materials | Destroyed by G-47 Trooper with Particle Gun Last Messages --------------- 01506_ G-34 Mercenary destroyed. 01518_ K-01 Serf collects debris. 01535_ K-01 Serf cleans the Terminal. 01540_ Lgt. Treads destroyed. 01544_ K-01 Serf cleans the Terminal. 01548_ Acquired Aluminum Leg. 01549_ G-34 Mercenary destroyed. 01551_ K-01 Serf collects debris. 01555_ K-01 Serf cleans the Terminal. 01556_ G-34 Mercenary destroyed. 01558_ K-01 Serf collects debris. 01561_ K-01 Serf cleans the Terminal. 01566_ Acquired 33 matter. 01569_ K-01 Serf collects debris. 01586_ G-34 Mercenary destroyed. 01589_ K-01 Serf collects debris. 01593_ K-01 Serf cleans the Terminal. 01600_ R-06 Scavenger collects Sml. Laser. 01602_ K-01 Serf cleans the Terminal. 01620_ Acquired 50 matter. Map ----- +----------------------------------------------------+ | | | | | | | | | | | | | ?????????????????????????????????????????????????? | | ?????????????????????????????????????????????????? | | ?????????????????????????????????????????????????? | | ?????????????????????????????????????????????????? | | ?????????????????????????????????????????????????? | | ?????????????????????????????????????????????????? | | ?????????????????????????????????????????????????? | | ?????????????????????????????????????????????????? | | ?????????????????????????????????????????????????? | | ?????????????????????????????????????????????????? | | ????????!????????????###########?????????????????? | | ?????????????????????# ?????????????????? | | ?????????????????????# """ ????????????????? | | ?????????????????????# """""????????????????? | | ?????????????????#???# """""????????????????? | | ?????????????????# ??# """""#???????????????? | | ?????????????????# ??# [ """ #???????????????? | | ?????????????????# ?# %[! #???????????????? | | ?????????????????# ####/########???????????????? | | ?????????????????# ##% @* ########## #???????? | | ?????????????????# g ! +???????? | | ?????????????????# g T #???????? | | ?????^??^????????# m k #???????? | | ???^?????????????###### [ u########## ##??????? | | ???^??????????########## a##???????# #??????? | | ??????????????# """ #k[ #????????# #???#### | | ???^????^?????# "T" + [k#????????# #???# | | ??????????????# =#[! #????????# ????# | | ??????????????# # ######???? ????# | | ??????????????# # #????# #????# | | ??????????? + """ # % #????# #????# | | ???????? ## """ # #????# #????# | | ?????????##???# """ ###### %#????# #?####### | | ??????????????# #?#### % ##???# ### | | ??????????????##########?#" !#???# + = | | ?????????????????????????#"" #???# ### "" | | ?????????????????????????#!! ######+#### !Y" | | ?????????????????????????#"" < ## [[ # [ "" | | ?????????????????????????#|| ## # | | ?????????????????????????#"" ## """" ####### | | ?????????????????????????#" ## """" #?????? | | ?????????????????????????#### ### """" #?????? | | ????????????????????????????# #?#= #?????? | | ????????????????????????????# ###+########?????? | +----------------------------------------------------+ Best States ------------- Heat Dissipation 25 Energy Generation 10 Energy Capacity 250 Matter Stores 300 Matter Capacity 300 Sight Range 16 Terrain Scan Density 10 Evasion (%) 55 Recoil Reduction 2 Item Schematics ----------------- None Robot Schematics ------------------ None Fabricated ------------ Nothing Repaired ---------- Nothing Studied --------- None Alien Tech Used ----------------- None Achievements -------------- Tank Challenges ------------ None Game ------ Seed TargetingPropulsionMace Manual? 0 Play Time 00:12:19 Cumulative 14.4 hours Start 2025.10.24 @ 19:19:54 End 2025.10.24 @ 19:31:37 Sessions 1 Manual Loads 0 Difficulty Rogue Special Mode None Game No. 44 Rogue 44 Adventurer 0 Explorer 0 Win Type - Total 0 Types 0/0/0/0/0/0/0/0/0/0 Lore% 9 Gallery% 19 Achievement% 15 Wizard Run 0 Options --------- Layout 1 ASCII 0 Keyboard 0 Movement Mouse Keybinds 0 Fullscreen 1 Font 32/SmallcapsGlow Map View 50x35 Zoom Use 0% Tactical HUD 1 Map Filters NONE Filters NONE Steam 1 RUN: b69b49e0-6c51-48ab-8b97-8bd97e0e4fa5